[Event "Titled Tuesday Blitz November 15 Late 2022"]
[White "Allahverdiyeva, Ayan"]
[Black "Santos Flores, Alberto"]
[WhiteFideId "13412590"]
[BlackFideId "3601234"]
[WhiteElo "2021"]
[BlackElo "2235"]
[Result "0-1"]
[Round "07"]
[TimeControl "180+1"]
[Date "2022.11.16"]
[WhiteClock "0:00:02"]
[BlackClock "0:00:27"]

1. e4 {[%clk 0:02:42]}  c5 {[%clk 0:02:58]} 2. Nf3 {[%clk 0:02:40]}  Nc6 {[%clk 0:02:59]} 3. c3 {[%clk 0:02:39]}  Nf6 {[%clk 0:02:57]} 4. Qe2 {[%clk 0:02:39]}  d5 {[%clk 0:02:54]} 5. e5 {[%clk 0:02:39]}  Ng8 {[%clk 0:02:51]} 6. Kd1 {[%clk 0:02:39]}  Bf5 {[%clk 0:02:46]} 7. Nh4 {[%clk 0:02:34]}  Bg6 {[%clk 0:02:43]} 8. Nxg6 {[%clk 0:02:33]}  hxg6 {[%clk 0:02:43]} 9. d3 {[%clk 0:02:26]}  e6 {[%clk 0:02:43]} 10. Bf4 {[%clk 0:02:14]}  g5 {[%clk 0:02:29]} 11. Bg3 {[%clk 0:02:13]}  Nge7 {[%clk 0:02:29]} 12. h3 {[%clk 0:01:46]}  g6 {[%clk 0:02:09]} 13. Nd2 {[%clk 0:01:40]}  Bg7 {[%clk 0:02:06]} 14. Rg1 {[%clk 0:01:39]}  Nf5 {[%clk 0:01:45]} 15. Bh2 {[%clk 0:01:37]}  g4 {[%clk 0:01:33]} 16. Qxg4 {[%clk 0:01:34]}  Nxe5 {[%clk 0:01:33]} 17. Qa4+ {[%clk 0:01:30]}  Qd7 {[%clk 0:01:30]} 18. Qxd7+ {[%clk 0:01:28]}  Nxd7 {[%clk 0:01:31]} 19. Kc2 {[%clk 0:01:14]}  b5 {[%clk 0:01:29]} 20. g4 {[%clk 0:01:12]}  Ne7 {[%clk 0:01:29]} 21. c4 {[%clk 0:01:06]}  bxc4 {[%clk 0:01:26]} 22. dxc4 {[%clk 0:01:07]}  Nc6 {[%clk 0:01:14]} 23. cxd5 {[%clk 0:01:01]}  Nd4+ {[%clk 0:01:07]} 24. Kd3 {[%clk 0:00:53]}  exd5 {[%clk 0:01:06]} 25. Bg2 {[%clk 0:00:52]}  c4+ {[%clk 0:01:01]} 26. Ke3 {[%clk 0:00:50]}  Nc2+ {[%clk 0:01:01]} 27. Ke2 {[%clk 0:00:37]}  Nxa1 {[%clk 0:01:00]} 28. Rxa1 {[%clk 0:00:37]}  Nb6 {[%clk 0:00:57]} 29. Rb1 {[%clk 0:00:31]}  O-O {[%clk 0:00:56]} 30. Nf3 {[%clk 0:00:19]}  Na4 {[%clk 0:00:53]} 31. Kd2 {[%clk 0:00:12]}  Nxb2 {[%clk 0:00:52]} 32. Kc2 {[%clk 0:00:12]}  Nd3 {[%clk 0:00:50]} 33. Bg3 {[%clk 0:00:11]}  Rfe8 {[%clk 0:00:41]} 34. Bf1 {[%clk 0:00:04]}  Nc5 {[%clk 0:00:35]} 35. Nd2 {[%clk 0:00:03]}  Be5 {[%clk 0:00:28]} 36. Bxe5 {[%clk 0:00:02]}  Rxe5 {[%clk 0:00:29]} 37. f4 {[%clk 0:00:02]}  Re3 {[%clk 0:00:28]} 38. h4 {[%clk 0:00:02]}  Ne4 {[%clk 0:00:27]} 0-1


[Site "https://www.chess.com"]

[Event "Titled Tuesday Blitz November 15 Late 2022"]
[White "Andreassen, Lars"]
[Black "Papayan, Oleg"]
[WhiteFideId "1504878"]
[BlackFideId "4193911"]
[WhiteElo "2119"]
[BlackElo "2153"]
[Result "0-1"]
[Round "07"]
[TimeControl "180+1"]
[Date "2022.11.16"]
[WhiteClock "0:02:23"]
[BlackClock "0:02:30"]

1. d4 {[%clk 0:02:59]}  Nf6 {[%clk 0:02:59]} 2. Nf3 {[%clk 0:02:59]}  d5 {[%clk 0:02:59]} 3. c4 {[%clk 0:02:58]}  e6 {[%clk 0:02:59]} 4. Nc3 {[%clk 0:02:59]}  c5 {[%clk 0:02:58]} 5. Bg5 {[%clk 0:02:59]}  cxd4 {[%clk 0:02:56]} 6. Nxd4 {[%clk 0:02:59]}  e5 {[%clk 0:02:57]} 7. Nc2 {[%clk 0:02:58]}  d4 {[%clk 0:02:56]} 8. Nd5 {[%clk 0:02:58]}  Be7 {[%clk 0:02:53]} 9. Nxe7 {[%clk 0:02:55]}  Qxe7 {[%clk 0:02:54]} 10. e3 {[%clk 0:02:51]}  dxe3 {[%clk 0:02:47]} 11. Nxe3 {[%clk 0:02:48]}  Qb4+ {[%clk 0:02:47]} 12. Ke2 {[%clk 0:02:41]}  Qxb2+ {[%clk 0:02:45]} 13. Qc2 {[%clk 0:02:36]}  Qxa1 {[%clk 0:02:42]} 14. Kf3 {[%clk 0:02:29]}  Nc6 {[%clk 0:02:33]} 15. Bd3 {[%clk 0:02:28]}  Qxh1 {[%clk 0:02:30]} 16. Bxf6 {[%clk 0:02:23]}  Nd4+ {[%clk 0:02:30]} 0-1


[Site "https://www.chess.com"]

[Event "Titled Tuesday Blitz November 15 Late 2022"]
[White "Artemenko, Oleg"]
[Black "Kirillov, Dmitry"]
[WhiteFideId "14201798"]
[BlackFideId "34180572"]
[WhiteElo "2287"]
[BlackElo "2095"]
[Result "1-0"]
[Round "07"]
[TimeControl "180+1"]
[Date "2022.11.16"]
[WhiteClock "0:02:04"]
[BlackClock "0:00:17"]

1. d4 {[%clk 0:03:00]}  d5 {[%clk 0:02:58]} 2. Nc3 {[%clk 0:03:00]}  e6 {[%clk 0:02:57]} 3. e4 {[%clk 0:02:58]}  Nf6 {[%clk 0:02:57]} 4. e5 {[%clk 0:02:58]}  Nfd7 {[%clk 0:02:57]} 5. f4 {[%clk 0:02:58]}  c5 {[%clk 0:02:58]} 6. Nf3 {[%clk 0:02:59]}  Nc6 {[%clk 0:02:58]} 7. Be3 {[%clk 0:02:59]}  Qb6 {[%clk 0:02:59]} 8. a3 {[%clk 0:02:59]}  c4 {[%clk 0:02:27]} 9. Rb1 {[%clk 0:02:37]}  Qa5 {[%clk 0:02:16]} 10. Qd2 {[%clk 0:02:34]}  b5 {[%clk 0:02:17]} 11. Be2 {[%clk 0:02:33]}  b4 {[%clk 0:02:00]} 12. axb4 {[%clk 0:02:34]}  Bxb4 {[%clk 0:02:00]} 13. Kf2 {[%clk 0:02:33]}  O-O {[%clk 0:01:44]} 14. Ra1 {[%clk 0:02:26]}  Qb6 {[%clk 0:01:38]} 15. Rhb1 {[%clk 0:02:24]}  f6 {[%clk 0:01:35]} 16. b3 {[%clk 0:02:18]}  fxe5 {[%clk 0:00:52]} 17. dxe5 {[%clk 0:02:19]}  Bc5 {[%clk 0:00:47]} 18. bxc4 {[%clk 0:02:17]}  Bxe3+ {[%clk 0:00:43]} 19. Qxe3 {[%clk 0:02:18]}  d4 {[%clk 0:00:21]} 20. Qe4 {[%clk 0:02:09]}  Nc5 {[%clk 0:00:17]} 21. Rxb6 {[%clk 0:02:07]}  Nxe4+ {[%clk 0:00:17]} 22. Nxe4 {[%clk 0:02:08]}  axb6 {[%clk 0:00:18]} 23. Rxa8 {[%clk 0:02:06]}  Bb7 {[%clk 0:00:17]} 24. Rxf8+ {[%clk 0:02:05]}  Kxf8 {[%clk 0:00:18]} 25. Ke1 {[%clk 0:02:06]}  Ke7 {[%clk 0:00:18]} 26. Kd2 {[%clk 0:02:05]}  Nb4 {[%clk 0:00:18]} 27. Nd6 {[%clk 0:02:04]}  Bc6 {[%clk 0:00:17]} 28. Nxd4 {[%clk 0:02:04]} 1-0


[Site "https://www.chess.com"]

[Event "Titled Tuesday Blitz November 15 Late 2022"]
[White "Bach, Matthias"]
[Black "Burke, Paul"]
[WhiteFideId "4603168"]
[BlackFideId "2605767"]
[WhiteElo "2165"]
[BlackElo "1815"]
[Result "1-0"]
[Round "07"]
[TimeControl "180+1"]
[Date "2022.11.16"]
[WhiteClock "0:00:39"]
[BlackClock "0:00:12"]

1. d4 {[%clk 0:02:55]}  Nf6 {[%clk 0:02:57]} 2. c4 {[%clk 0:02:55]}  c5 {[%clk 0:02:57]} 3. d5 {[%clk 0:02:54]}  Ne4 {[%clk 0:02:57]} 4. Nd2 {[%clk 0:02:54]}  Qa5 {[%clk 0:02:56]} 5. Qc2 {[%clk 0:02:54]}  Nf6 {[%clk 0:02:55]} 6. e4 {[%clk 0:02:54]}  d6 {[%clk 0:02:56]} 7. Bd3 {[%clk 0:02:54]}  g6 {[%clk 0:02:56]} 8. Ne2 {[%clk 0:02:54]}  Bg7 {[%clk 0:02:56]} 9. O-O {[%clk 0:02:54]}  Na6 {[%clk 0:02:56]} 10. a3 {[%clk 0:02:53]}  O-O {[%clk 0:02:55]} 11. f4 {[%clk 0:02:50]}  Nb4 {[%clk 0:02:33]} 12. axb4 {[%clk 0:02:49]}  Qxa1 {[%clk 0:02:33]} 13. bxc5 {[%clk 0:02:50]}  dxc5 {[%clk 0:02:29]} 14. e5 {[%clk 0:02:49]}  Ng4 {[%clk 0:02:23]} 15. Ne4 {[%clk 0:02:48]}  b6 {[%clk 0:01:53]} 16. h3 {[%clk 0:02:33]}  Nh6 {[%clk 0:01:52]} 17. g4 {[%clk 0:02:33]}  Nxg4 {[%clk 0:01:46]} 18. hxg4 {[%clk 0:02:32]}  Bxg4 {[%clk 0:01:45]} 19. N2g3 {[%clk 0:02:32]}  h5 {[%clk 0:01:35]} 20. Bd2 {[%clk 0:02:30]}  Qa6 {[%clk 0:01:33]} 21. Bc3 {[%clk 0:02:30]}  Bh3 {[%clk 0:01:29]} 22. Re1 {[%clk 0:02:23]}  Qc8 {[%clk 0:01:28]} 23. Kh2 {[%clk 0:02:08]}  Bg4 {[%clk 0:01:21]} 24. Ng5 {[%clk 0:02:00]}  f6 {[%clk 0:00:53]} 25. Ne6 {[%clk 0:01:34]}  Bxe6 {[%clk 0:00:49]} 26. dxe6 {[%clk 0:01:33]}  f5 {[%clk 0:00:45]} 27. Bf1 {[%clk 0:01:14]}  Qxe6 {[%clk 0:00:43]} 28. Bg2 {[%clk 0:01:14]}  Qxc4 {[%clk 0:00:32]} 29. Bxa8 {[%clk 0:01:10]}  Rxa8 {[%clk 0:00:31]} 30. Qg2 {[%clk 0:01:10]}  Rd8 {[%clk 0:00:29]} 31. Nf1 {[%clk 0:00:57]}  Qxf4+ {[%clk 0:00:28]} 32. Qg3 {[%clk 0:00:55]}  Qh6 {[%clk 0:00:25]} 33. Kh1 {[%clk 0:00:44]}  h4 {[%clk 0:00:23]} 34. Qh3 {[%clk 0:00:43]}  Qh5 {[%clk 0:00:16]} 35. Nh2 {[%clk 0:00:42]}  Rd1 {[%clk 0:00:15]} 36. Qf1 {[%clk 0:00:39]}  Rd3 {[%clk 0:00:12]} 37. Qxd3 {[%clk 0:00:39]} 1-0


[Site "https://www.chess.com"]

[Event "Titled Tuesday Blitz November 15 Late 2022"]
[White "Baskakov, Egor"]
[Black "Goryachkina, Aleksandra"]
[WhiteFideId "24197866"]
[BlackFideId "4147103"]
[WhiteElo "2211"]
[BlackElo "2484"]
[Result "1-0"]
[Round "07"]
[TimeControl "180+1"]
[Date "2022.11.15"]
[WhiteClock "0:01:35"]
[BlackClock "0:00:02"]

1. e4 {[%clk 0:03:00]}  c5 {[%clk 0:02:59]} 2. Nf3 {[%clk 0:03:00]}  e6 {[%clk 0:02:59]} 3. Be2 {[%clk 0:03:00]}  Nc6 {[%clk 0:02:50]} 4. c4 {[%clk 0:03:00]}  Nf6 {[%clk 0:02:48]} 5. Nc3 {[%clk 0:03:00]}  d5 {[%clk 0:02:48]} 6. exd5 {[%clk 0:03:01]}  exd5 {[%clk 0:02:48]} 7. d4 {[%clk 0:03:01]}  Be7 {[%clk 0:02:30]} 8. O-O {[%clk 0:03:00]}  O-O {[%clk 0:02:27]} 9. Bg5 {[%clk 0:02:56]}  cxd4 {[%clk 0:02:14]} 10. Nxd4 {[%clk 0:02:56]}  Nxd4 {[%clk 0:02:13]} 11. Qxd4 {[%clk 0:02:57]}  dxc4 {[%clk 0:02:12]} 12. Qxd8 {[%clk 0:02:57]}  Rxd8 {[%clk 0:02:12]} 13. Bxc4 {[%clk 0:02:58]}  h6 {[%clk 0:02:03]} 14. Bh4 {[%clk 0:02:56]}  Rd4 {[%clk 0:01:57]} 15. Bxf6 {[%clk 0:02:49]}  Bxf6 {[%clk 0:01:57]} 16. Bb3 {[%clk 0:02:46]}  Bg4 {[%clk 0:01:43]} 17. h3 {[%clk 0:02:45]}  Bh5 {[%clk 0:01:41]} 18. Nd5 {[%clk 0:02:40]}  Rd8 {[%clk 0:01:07]} 19. Nxf6+ {[%clk 0:02:39]}  gxf6 {[%clk 0:01:07]} 20. Rac1 {[%clk 0:02:38]}  R8d7 {[%clk 0:00:59]} 21. f4 {[%clk 0:02:27]}  Be2 {[%clk 0:00:52]} 22. Rf2 {[%clk 0:02:27]}  Bd1 {[%clk 0:00:49]} 23. Rc3 {[%clk 0:02:08]}  Bxb3 {[%clk 0:00:45]} 24. Rxb3 {[%clk 0:02:09]}  b6 {[%clk 0:00:44]} 25. Kh2 {[%clk 0:02:08]}  Rd2 {[%clk 0:00:42]} 26. Kg3 {[%clk 0:01:59]}  Rxf2 {[%clk 0:00:40]} 27. Kxf2 {[%clk 0:02:00]}  Rd2+ {[%clk 0:00:40]} 28. Kf3 {[%clk 0:02:00]}  Kf8 {[%clk 0:00:31]} 29. g3 {[%clk 0:01:47]}  Ke7 {[%clk 0:00:26]} 30. Kg4 {[%clk 0:01:47]}  Kf8 {[%clk 0:00:20]} 31. Kf5 {[%clk 0:01:41]}  Kg7 {[%clk 0:00:19]} 32. g4 {[%clk 0:01:42]}  h5 {[%clk 0:00:10]} 33. gxh5 {[%clk 0:01:39]}  Rd5+ {[%clk 0:00:10]} 34. Kg4 {[%clk 0:01:39]}  Kh6 {[%clk 0:00:10]} 35. Rc3 {[%clk 0:01:38]}  f5+ {[%clk 0:00:03]} 36. Kh4 {[%clk 0:01:35]}  Rd4 {[%clk 0:00:03]} 37. Rc6+ {[%clk 0:01:35]}  Kh7 {[%clk 0:00:02]} 38. Kg5 {[%clk 0:01:35]} 1-0


[Site "https://www.chess.com"]

[Event "Titled Tuesday Blitz November 15 Late 2022"]
[White "Bazzano, Sebastian"]
[Black "Dudzinski, Pawel"]
[WhiteFideId "104566"]
[BlackFideId "1117890"]
[WhiteElo "2265"]
[BlackElo "2086"]
[Result "0-1"]
[Round "07"]
[TimeControl "180+1"]
[Date "2022.11.16"]
[WhiteClock "0:00:01"]
[BlackClock "0:00:16"]

1. d4 {[%clk 0:03:00]}  d5 {[%clk 0:02:59]} 2. Bf4 {[%clk 0:02:59]}  e6 {[%clk 0:02:59]} 3. e3 {[%clk 0:02:59]}  f5 {[%clk 0:03:00]} 4. Nf3 {[%clk 0:02:57]}  Nf6 {[%clk 0:03:00]} 5. Ne5 {[%clk 0:02:56]}  Be7 {[%clk 0:03:01]} 6. Nd2 {[%clk 0:02:55]}  O-O {[%clk 0:03:01]} 7. Bd3 {[%clk 0:02:55]}  c5 {[%clk 0:03:01]} 8. c3 {[%clk 0:02:55]}  c4 {[%clk 0:03:01]} 9. Bc2 {[%clk 0:02:55]}  Bd7 {[%clk 0:03:01]} 10. Nxd7 {[%clk 0:02:47]}  Qxd7 {[%clk 0:02:44]} 11. Nf3 {[%clk 0:02:47]}  Nc6 {[%clk 0:02:40]} 12. Ne5 {[%clk 0:02:46]}  Nxe5 {[%clk 0:02:38]} 13. Bxe5 {[%clk 0:02:47]}  Bd6 {[%clk 0:02:38]} 14. Bxf6 {[%clk 0:02:16]}  Rxf6 {[%clk 0:02:37]} 15. f4 {[%clk 0:01:54]}  b5 {[%clk 0:02:32]} 16. Kf2 {[%clk 0:01:44]}  b4 {[%clk 0:02:28]} 17. Rg1 {[%clk 0:01:39]}  Rb8 {[%clk 0:01:57]} 18. Rb1 {[%clk 0:01:29]}  Qc7 {[%clk 0:01:51]} 19. g4 {[%clk 0:01:01]}  g6 {[%clk 0:01:43]} 20. gxf5 {[%clk 0:00:56]}  exf5 {[%clk 0:01:31]} 21. Qf3 {[%clk 0:00:52]}  Qc6 {[%clk 0:01:30]} 22. h4 {[%clk 0:00:44]}  Kf7 {[%clk 0:01:26]} 23. h5 {[%clk 0:00:43]}  Ke6 {[%clk 0:01:20]} 24. hxg6 {[%clk 0:00:26]}  hxg6 {[%clk 0:01:03]} 25. Qh3 {[%clk 0:00:26]}  Qc7 {[%clk 0:00:51]} 26. Rxg6 {[%clk 0:00:22]}  Rf8 {[%clk 0:00:26]} 27. Qxf5+ {[%clk 0:00:20]}  Ke7 {[%clk 0:00:26]} 28. Rxf6 {[%clk 0:00:16]}  Rxf6 {[%clk 0:00:27]} 29. Qxd5 {[%clk 0:00:16]}  Bxf4 {[%clk 0:00:24]} 30. Qe4+ {[%clk 0:00:06]}  Re6 {[%clk 0:00:22]} 31. Qxf4 {[%clk 0:00:06]}  Rf6 {[%clk 0:00:23]} 32. Bf5 {[%clk 0:00:05]}  Qxf4+ {[%clk 0:00:20]} 33. exf4 {[%clk 0:00:06]}  Rxf5 {[%clk 0:00:21]} 34. Ke3 {[%clk 0:00:06]}  Rb5 {[%clk 0:00:19]} 35. d5 {[%clk 0:00:03]}  bxc3 {[%clk 0:00:17]} 36. Rc1 {[%clk 0:00:01]}  cxb2 {[%clk 0:00:17]} 37. Rb1 {[%clk 0:00:01]}  c3 {[%clk 0:00:15]} 38. Kd3 {[%clk 0:00:01]}  Rc5 {[%clk 0:00:16]} 0-1


[Site "https://www.chess.com"]

[Event "Titled Tuesday Blitz November 15 Late 2022"]
[White "Bogaudinov, Rushan"]
[Black "Prohorov, Olexandr"]
[WhiteFideId "4129288"]
[BlackFideId "14105578"]
[WhiteElo "1997"]
[BlackElo "1993"]
[Result "1-0"]
[Round "07"]
[TimeControl "180+1"]
[Date "2022.11.16"]
[WhiteClock "0:01:01"]
[BlackClock "0:00:03"]

1. d4 {[%clk 0:02:42]}  g6 {[%clk 0:02:57]} 2. h4 {[%clk 0:02:42]}  c5 {[%clk 0:02:51]} 3. h5 {[%clk 0:02:40]}  Bg7 {[%clk 0:02:44]} 4. c3 {[%clk 0:02:34]}  Qb6 {[%clk 0:02:38]} 5. h6 {[%clk 0:02:28]}  Bf6 {[%clk 0:02:35]} 6. d5 {[%clk 0:02:28]}  d6 {[%clk 0:02:32]} 7. e4 {[%clk 0:02:27]}  e6 {[%clk 0:02:29]} 8. Na3 {[%clk 0:02:16]}  exd5 {[%clk 0:02:08]} 9. exd5 {[%clk 0:02:15]}  Qc7 {[%clk 0:01:50]} 10. Bf4 {[%clk 0:02:03]}  Be5 {[%clk 0:01:31]} 11. Nb5 {[%clk 0:01:56]}  Qd8 {[%clk 0:01:30]} 12. Bxe5 {[%clk 0:01:55]}  dxe5 {[%clk 0:01:30]} 13. d6 {[%clk 0:01:45]}  Na6 {[%clk 0:01:30]} 14. Qd5 {[%clk 0:01:45]}  Qf6 {[%clk 0:00:53]} 15. Bc4 {[%clk 0:01:40]}  Qe6 {[%clk 0:00:43]} 16. Nf3 {[%clk 0:01:34]}  Qxd5 {[%clk 0:00:40]} 17. Bxd5 {[%clk 0:01:34]}  Nf6 {[%clk 0:00:41]} 18. O-O-O {[%clk 0:01:31]}  Bd7 {[%clk 0:00:26]} 19. c4 {[%clk 0:01:17]}  Rb8 {[%clk 0:00:21]} 20. Nxe5 {[%clk 0:01:16]}  O-O {[%clk 0:00:19]} 21. Nxd7 {[%clk 0:01:06]}  Nxd7 {[%clk 0:00:12]} 22. a3 {[%clk 0:01:06]}  b6 {[%clk 0:00:08]} 23. Rhe1 {[%clk 0:01:05]}  Rfe8 {[%clk 0:00:04]} 24. Re7 {[%clk 0:01:01]}  Rxe7 {[%clk 0:00:03]} 25. dxe7 {[%clk 0:01:02]}  Nf6 {[%clk 0:00:03]} 26. Bc6 {[%clk 0:01:01]} 1-0


[Site "https://www.chess.com"]

[Event "Titled Tuesday Blitz November 15 Late 2022"]
[White "Bordi, Kevin"]
[Black "Molenda, Marcin"]
[WhiteFideId "621862"]
[BlackFideId "1173065"]
[WhiteElo "2796"]
[BlackElo "2553"]
[Result "1-0"]
[Round "07"]
[TimeControl "180+1"]
[Date "2022.11.16"]
[WhiteClock "0:00:45"]
[BlackClock "0:01:55"]

1. e4 {[%clk 0:03:00]}  c5 {[%clk 0:02:59]} 2. Nf3 {[%clk 0:03:01]}  e6 {[%clk 0:02:59]} 3. d4 {[%clk 0:03:00]}  cxd4 {[%clk 0:03:00]} 4. Nxd4 {[%clk 0:03:01]}  a6 {[%clk 0:03:01]} 5. h3 {[%clk 0:03:01]}  Qc7 {[%clk 0:02:59]} 6. Nc3 {[%clk 0:02:55]}  Nf6 {[%clk 0:02:59]} 7. g4 {[%clk 0:02:41]}  h6 {[%clk 0:02:52]} 8. Bg2 {[%clk 0:02:38]}  Bc5 {[%clk 0:02:49]} 9. Be3 {[%clk 0:02:37]}  d6 {[%clk 0:02:48]} 10. Qd2 {[%clk 0:02:36]}  Nbd7 {[%clk 0:02:44]} 11. O-O-O {[%clk 0:02:34]}  Ne5 {[%clk 0:02:44]} 12. Qe2 {[%clk 0:02:32]}  b5 {[%clk 0:02:43]} 13. Kb1 {[%clk 0:02:25]}  b4 {[%clk 0:02:40]} 14. Na4 {[%clk 0:02:22]}  Bb7 {[%clk 0:02:39]} 15. f4 {[%clk 0:02:20]}  Ned7 {[%clk 0:02:33]} 16. Nxc5 {[%clk 0:01:32]}  dxc5 {[%clk 0:02:33]} 17. Nb3 {[%clk 0:01:22]}  Nxe4 {[%clk 0:02:32]} 18. Bxe4 {[%clk 0:01:20]}  Bxe4 {[%clk 0:02:32]} 19. Rhe1 {[%clk 0:01:21]}  O-O {[%clk 0:02:31]} 20. f5 {[%clk 0:01:19]}  exf5 {[%clk 0:02:28]} 21. gxf5 {[%clk 0:01:19]}  Bxf5 {[%clk 0:02:27]} 22. Rg1 {[%clk 0:01:16]}  a5 {[%clk 0:02:24]} 23. Bxh6 {[%clk 0:01:13]}  Bg6 {[%clk 0:02:24]} 24. Qe7 {[%clk 0:01:01]}  Ra7 {[%clk 0:02:16]} 25. Rxg6 {[%clk 0:01:01]}  Qe5 {[%clk 0:01:56]} 26. Rxg7+ {[%clk 0:00:51]}  Kh8 {[%clk 0:01:56]} 27. Qxe5 {[%clk 0:00:49]}  Nxe5 {[%clk 0:01:57]} 28. Rgg1 {[%clk 0:00:47]}  c4 {[%clk 0:01:55]} 29. Bxf8 {[%clk 0:00:45]} 1-0


[Site "https://www.chess.com"]

[Event "Titled Tuesday Blitz November 15 Late 2022"]
[White "Brown, Andrew"]
[Black "Janaszak, Dawid"]
[WhiteFideId "3206513"]
[BlackFideId "1119206"]
[WhiteElo "2245"]
[BlackElo "2226"]
[Result "0-1"]
[Round "07"]
[TimeControl "180+1"]
[Date "2022.11.16"]
[WhiteClock "0:00:06"]
[BlackClock "0:00:28"]

1. d4 {[%clk 0:03:00]}  d5 {[%clk 0:02:58]} 2. c4 {[%clk 0:03:00]}  e6 {[%clk 0:02:58]} 3. Nc3 {[%clk 0:02:59]}  c5 {[%clk 0:02:58]} 4. cxd5 {[%clk 0:02:55]}  exd5 {[%clk 0:02:59]} 5. g3 {[%clk 0:02:54]}  Nf6 {[%clk 0:02:58]} 6. Bg2 {[%clk 0:02:54]}  cxd4 {[%clk 0:02:57]} 7. Qxd4 {[%clk 0:02:52]}  Nc6 {[%clk 0:02:57]} 8. Qd1 {[%clk 0:02:37]}  d4 {[%clk 0:02:47]} 9. Na4 {[%clk 0:02:28]}  Bb4+ {[%clk 0:02:39]} 10. Bd2 {[%clk 0:02:28]}  Qa5 {[%clk 0:02:40]} 11. b3 {[%clk 0:02:12]}  Bf5 {[%clk 0:02:29]} 12. Nf3 {[%clk 0:01:48]}  Ne4 {[%clk 0:02:29]} 13. a3 {[%clk 0:01:33]}  Bxd2+ {[%clk 0:02:09]} 14. Nxd2 {[%clk 0:01:34]}  O-O {[%clk 0:02:02]} 15. b4 {[%clk 0:01:18]}  Qe5 {[%clk 0:02:01]} 16. O-O {[%clk 0:01:00]}  Rad8 {[%clk 0:02:01]} 17. Bxe4 {[%clk 0:00:47]}  Bxe4 {[%clk 0:02:01]} 18. Nc5 {[%clk 0:00:47]}  Bd5 {[%clk 0:01:49]} 19. Nxb7 {[%clk 0:00:44]}  Rde8 {[%clk 0:01:43]} 20. b5 {[%clk 0:00:36]}  d3 {[%clk 0:01:30]} 21. e4 {[%clk 0:00:26]}  Nd4 {[%clk 0:01:28]} 22. Nc5 {[%clk 0:00:19]}  Qd6 {[%clk 0:00:48]} 23. Nxd3 {[%clk 0:00:17]}  Bxe4 {[%clk 0:00:42]} 24. Nxe4 {[%clk 0:00:17]}  Rxe4 {[%clk 0:00:42]} 25. a4 {[%clk 0:00:16]}  Rd8 {[%clk 0:00:41]} 26. Kg2 {[%clk 0:00:15]}  Qd5 {[%clk 0:00:39]} 27. f3 {[%clk 0:00:14]}  Re3 {[%clk 0:00:37]} 28. Nf4 {[%clk 0:00:12]}  Qa8 {[%clk 0:00:37]} 29. Ra2 {[%clk 0:00:09]}  Nxf3 {[%clk 0:00:32]} 30. Rxf3 {[%clk 0:00:06]}  Rxd1 {[%clk 0:00:28]} 0-1


[Site "https://www.chess.com"]

[Event "Titled Tuesday Blitz November 15 Late 2022"]
[White "Buchenau, Frank"]
[Black "Yurovskykh, Oleksandr"]
[WhiteFideId "4604350"]
[BlackFideId "14134020"]
[WhiteElo "2157"]
[BlackElo "2265"]
[Result "0-1"]
[Round "07"]
[TimeControl "180+1"]
[Date "2022.11.16"]
[WhiteClock "0:00:01"]
[BlackClock "0:00:03"]

1. e4 {[%clk 0:02:59]}  e6 {[%clk 0:02:59]} 2. d4 {[%clk 0:02:58]}  d5 {[%clk 0:03:00]} 3. Nc3 {[%clk 0:02:58]}  dxe4 {[%clk 0:03:00]} 4. Nxe4 {[%clk 0:02:58]}  Bd7 {[%clk 0:03:01]} 5. Nf3 {[%clk 0:02:57]}  Bc6 {[%clk 0:03:01]} 6. Bd3 {[%clk 0:02:56]}  Nd7 {[%clk 0:03:01]} 7. O-O {[%clk 0:02:55]}  Ngf6 {[%clk 0:03:00]} 8. Ned2 {[%clk 0:02:54]}  Be7 {[%clk 0:02:39]} 9. Nc4 {[%clk 0:02:54]}  O-O {[%clk 0:02:38]} 10. Nfe5 {[%clk 0:02:52]}  Nxe5 {[%clk 0:02:37]} 11. Nxe5 {[%clk 0:02:52]}  Be4 {[%clk 0:02:27]} 12. Bxe4 {[%clk 0:02:45]}  Nxe4 {[%clk 0:02:28]} 13. Qd3 {[%clk 0:02:44]}  Nf6 {[%clk 0:02:21]} 14. c4 {[%clk 0:02:21]}  c6 {[%clk 0:01:48]} 15. Be3 {[%clk 0:02:10]}  Qa5 {[%clk 0:01:41]} 16. a3 {[%clk 0:02:06]}  Rfd8 {[%clk 0:01:36]} 17. b4 {[%clk 0:02:01]}  Qa6 {[%clk 0:01:35]} 18. Qb3 {[%clk 0:01:40]}  b5 {[%clk 0:01:31]} 19. Rfc1 {[%clk 0:01:37]}  Qb7 {[%clk 0:01:18]} 20. a4 {[%clk 0:01:34]}  bxc4 {[%clk 0:00:39]} 21. Rxc4 {[%clk 0:01:32]}  Rdc8 {[%clk 0:00:38]} 22. Rac1 {[%clk 0:01:31]}  Bd6 {[%clk 0:00:22]} 23. Nxc6 {[%clk 0:01:28]}  Rc7 {[%clk 0:00:22]} 24. b5 {[%clk 0:01:23]}  Rac8 {[%clk 0:00:19]} 25. Na5 {[%clk 0:01:15]}  Qb8 {[%clk 0:00:15]} 26. Rxc7 {[%clk 0:01:13]}  Rxc7 {[%clk 0:00:16]} 27. Rxc7 {[%clk 0:01:12]}  Qxc7 {[%clk 0:00:16]} 28. Nc6 {[%clk 0:01:08]}  Nd5 {[%clk 0:00:17]} 29. h3 {[%clk 0:00:57]}  Kf8 {[%clk 0:00:16]} 30. a5 {[%clk 0:00:47]}  Ke8 {[%clk 0:00:16]} 31. Kf1 {[%clk 0:00:40]}  a6 {[%clk 0:00:17]} 32. Qc4 {[%clk 0:00:36]}  Kd7 {[%clk 0:00:15]} 33. Qa2 {[%clk 0:00:21]}  axb5 {[%clk 0:00:15]} 34. Ne5+ {[%clk 0:00:20]}  Bxe5 {[%clk 0:00:15]} 35. dxe5 {[%clk 0:00:21]}  Kc8 {[%clk 0:00:13]} 36. a6 {[%clk 0:00:21]}  Kb8 {[%clk 0:00:13]} 37. Qa3 {[%clk 0:00:19]}  Qc4+ {[%clk 0:00:13]} 38. Kg1 {[%clk 0:00:18]}  Qb4 {[%clk 0:00:13]} 39. Qc1 {[%clk 0:00:17]}  Qc4 {[%clk 0:00:12]} 40. Qa3 {[%clk 0:00:17]}  Qb4 {[%clk 0:00:04]} 41. Qc1 {[%clk 0:00:16]}  Qc3 {[%clk 0:00:04]} 42. Qb1 {[%clk 0:00:14]}  b4 {[%clk 0:00:05]} 43. Qa2 {[%clk 0:00:13]}  b3 {[%clk 0:00:05]} 44. Qa4 {[%clk 0:00:13]}  b2 {[%clk 0:00:05]} 45. Qb5+ {[%clk 0:00:13]}  Kc8 {[%clk 0:00:06]} 46. Qb7+ {[%clk 0:00:12]}  Kd8 {[%clk 0:00:05]} 47. a7 {[%clk 0:00:10]}  Nc7 {[%clk 0:00:05]} 48. Kh2 {[%clk 0:00:05]}  Qxe5+ {[%clk 0:00:05]} 49. g3 {[%clk 0:00:04]}  Qd5 {[%clk 0:00:03]} 50. Qxb2 {[%clk 0:00:01]}  Kd7 {[%clk 0:00:03]} 51. Qb8 {[%clk 0:00:01]}  Na8 {[%clk 0:00:03]} 52. Bf4 {[%clk 0:00:01]}  e5 {[%clk 0:00:03]} 0-1


[Site "https://www.chess.com"]